bitfinex/quotes_ETHUSD_20251010
["timestamp","ask_amount","ask_price","bid_price","bid_amount"]
[1760135702343,0.71364573,3884.8,3884.7,2.77795384]
[1760135702545,0.001,3884.8,3884.7,2.77795384]
[1760135703053,0.001,3884.8,3884.7,4.00795384]
[1760135703579,1.57480603,3884.8,3884.7,4.00795384]
[1760135703947,1.57480603,3884.8,3884.7,0.04856916]
[1760135704253,0.30749936,3884.8,3884.7,0.04856916]
[1760135704458,0.001,3884.8,3884.7,1.27856916]
[1760135704824,0.28252942,3884.8,3884.7,1.27856916]
[1760135705023,0.28252942,3884.8,3884.7,0.93116476]
[1760135705361,1.55842397,3884.8,3884.7,0.93116476]
[1760135705548,0.001,3884.8,3884.7,0.93116476]
[1760135705852,0.001,3884.8,3884.7,2.16116476]
[1760135706351,0.001,3885.6,3884.7,2.16116476]
[1760135707131,0.001,3885.6,3884.7,3.39116476]
[1760135707560,0.001,3888.9,3884.8,1.92]
[1760135708671,0.001,3888.9,3885.1,63.9799]
[1760135709035,0.001,3888.9,3884.8,1.23]
[1760135709431,1.27891471,3888.8,3884.8,1.23]
[1760135709770,0.001,3885.2,3884.8,1.23]
[1760135709932,0.001,3885.2,3884.8,2.46]
[1760135711133,0.001,3885.2,3884.8,3.69]
[1760135712674,0.001,3885.2,3884.8,4.92]
[1760135714033,0.001,3885.2,3884.8,6.15]
[1760135715468,0.001,3885.2,3884.9,1.92]
[1760135716560,0.001,3885.2,3885.1,21.571]
[1760135717695,0.001,3885.2,3885.1,52.347]
[1760135718058,0.001,3885.2,3885.1,53.577]
[1760135719290,0.001,3885.2,3885.1,53.8296417]
[1760135719478,0.001,3885.2,3885.1,54.807]
[1760135719864,0.001,3885.2,3885.1,2.46]
[1760135720903,0.001,3885.2,3885.1,39.371]
[1760135721474,0.001,3885.2,3885.1,71.866]
[1760135721674,0.001,3889.3,3885.2,2.22415779]
[1760135721873,0.001,3889.3,3885.2,2.45918037]
[1760135722065,0.001,3889.3,3885.2,2.15502258]
[1760135722272,0.001,3889.3,3885.2,3.38502258]
[1760135722478,0.001,3889.3,3885.2,3.15]
[1760135722807,0.001,3889.3,3885.2,1.23]
[1760135723209,0.001,3889.3,3885.3,0.02573803]
[1760135723396,1.29272316,3889.2,3885.3,0.02573803]
[1760135723707,0.001,3889.3,3885.3,1.23]
[1760135724809,0.001,3889.3,3885.3,2.46]
[1760135725610,0.001,3889.3,3886.0,38.014]
[1760135725911,0.001,3889.3,3886.1,1.92]
[1760135726135,0.001,3889.3,3886.0,38.014]
[1760135726414,0.001,3889.3,3886.0,1.23]
[1760135727789,0.001,3889.3,3886.0,2.46]
[1760135728614,0.001,3889.3,3886.1,1.92]
[1760135729316,0.001,3889.3,3886.1,3.15]
[1760135730411,0.001,3889.3,3886.8,1.92]
[1760135730824,0.001,3889.3,3886.7,23.1449]
[1760135731227,0.001,3889.3,3886.8,1.92]
[1760135731527,1.26247539,3899.0,3889.2,50.2059]
[1760135731730,1.25800426,3896.6,3889.3,1.92]
[1760135731931,0.24658192,3897.1,3889.3,1.92]
[1760135732100,0.34616525,3896.5,3889.2,49.5159]
[1760135732428,1.25547317,3899.5,3889.2,49.5159]
[1760135732631,0.34560832,3899.0,3889.2,49.5159]
[1760135732829,0.34947106,3899.0,3889.2,49.5159]
[1760135733033,0.34947106,3899.0,3889.3,1.92]
[1760135733211,0.34560832,3899.0,3889.3,1.92]
[1760135733527,1.26955899,3898.9,3889.3,3.15]
[1760135733830,0.36463832,3898.9,3889.3,3.15]
[1760135734328,0.80725419,3898.7,3889.3,1.23]
[1760135734515,0.001,3899.5,3889.3,1.23]
[1760135734516,1.22233256,3898.5,3889.3,1.23]
[1760135734716,0.38007186,3898.4,3889.3,2.46]
[1760135734921,0.3839346,3898.4,3889.3,2.46]
[1760135735432,0.3839346,3898.4,3889.4,1.94571089]
[1760135735605,0.00386274,3898.4,3889.4,1.94571089]
[1760135735926,0.001,3899.5,3889.4,1.94571089]
[1760135736134,0.29537905,3898.6,3889.4,3.17571089]
[1760135736438,1.2261953,3898.5,3890.2,1.92]
[1760135736604,1.25788762,3898.3,3890.3,0.02570494]
[1760135736801,0.001,3899.5,3890.3,0.02570494]
[1760135737018,0.001,3899.5,3890.2,1.92]
[1760135737511,0.001,3899.5,3890.4,1.92]
[1760135737902,0.00386274,3899.0,3890.4,1.92]
[1760135738105,0.29991132,3899.0,3890.4,1.92]
[1760135738329,0.00486274,3899.1,3890.4,1.92]
[1760135738541,0.00486274,3899.1,3890.2,1.23]
[1760135738542,1.24930386,3899.0,3890.2,1.23]
[1760135738912,1.25604519,3898.8,3890.2,2.46]
[1760135739305,1.24254869,3898.6,3890.2,2.46]
[1760135739503,1.24930386,3899.0,3890.2,2.46]
[1760135739707,1.29620327,3898.4,3890.3,0.00630382]
[1760135739941,0.001,3899.1,3890.3,0.00630382]
[1760135740141,0.00386274,3899.0,3890.2,2.46]
[1760135740344,0.4493,3898.9,3890.2,3.69]
[1760135740531,1.25604519,3898.8,3890.2,3.69]
[1760135740731,1.24254869,3898.6,3890.2,3.69]
[1760135740933,1.29620327,3898.4,3890.2,3.69]
[1760135741249,1.21017425,3898.2,3890.2,3.69]
[1760135741448,1.20037519,3898.0,3890.3,0.00594751]
[1760135741744,0.001,3899.1,3890.2,4.92]
[1760135741745,1.24971778,3897.8,3890.2,4.92]
[1760135741925,1.27655162,3897.6,3890.2,4.92]
[1760135742129,1.20483898,3897.4,3890.2,4.92]
[1760135742318,1.29586762,3897.2,3890.2,4.92]
[1760135742646,0.28208671,3897.2,3890.3,1.92]
[1760135742944,0.00386274,3897.1,3890.3,1.92]
[1760135743126,0.00386274,3897.1,3890.3,3.15]
[1760135743327,0.00386274,3899.0,3890.3,3.15]
[1760135743523,1.27395995,3899.1,3890.6,1.92]
[1760135743845,0.001,3899.1,3890.6,1.92]
[1760135744345,0.001,3899.1,3892.0,0.1]
[1760135745626,1.27782269,3899.1,3892.0,0.1]
[1760135745837,1.27395995,3899.1,3892.0,0.1]
[1760135746037,1.26955899,3898.9,3892.0,1.33]
[1760135746237,0.34091446,3898.8,3892.0,1.33]
[1760135746440,1.27725419,3898.7,3892.0,1.33]
[1760135746641,1.22233256,3898.5,3892.0,1.33]
[1760135746949,1.25788762,3898.3,3892.0,1.33]
[1760135747151,0.3587741,3898.2,3892.0,1.33]
[1760135747320,1.2350649,3898.1,3892.0,2.56]
[1760135747520,1.29899667,3897.9,3892.0,2.56]
[1760135747824,1.2770514,3897.7,3892.0,2.12474808]
[1760135748138,1.29279658,3897.5,3892.0,2.12474808]
[1760135748346,0.25331198,3897.4,3892.0,2.12474808]
[1760135748547,1.24625778,3897.3,3892.0,2.12474808]
[1760135748851,1.97581686,3897.2,3892.0,3.35474808]
[1760135749044,0.00386274,3897.1,3892.0,3.35474808]
[1760135749245,1.50142942,3897.0,3892.0,3.35474808]
[1760135749434,1.27710378,3896.8,3892.0,3.35474808]
[1760135749630,1.25800426,3896.6,3892.0,3.35474808]
[1760135749867,1.29473717,3896.4,3892.0,3.35474808]
[1760135750165,1.24867389,3896.2,3892.0,4.58474808]
[1760135750458,0.26064276,3896.1,3892.0,4.58474808]
[1760135750630,1.50294302,3896.1,3892.0,4.58474808]
[1760135750822,0.25904401,3896.1,3892.0,4.58474808]
[1760135751022,0.24105235,3896.0,3892.0,4.58474808]
[1760135751350,1.27547725,3895.9,3892.0,4.58474808]
[1760135751556,1.21531808,3895.7,3892.0,5.81474808]
[1760135751863,1.21549231,3895.5,3892.0,5.81474808]
[1760135752068,0.28174856,3895.4,3892.0,5.81474808]
[1760135752363,1.7292833,3895.3,3892.0,4.48016494]
[1760135752557,1.24505795,3895.1,3892.0,2.47829023]
[1760135752768,1.25791837,3894.9,3892.0,2.47829023]
[1760135752963,0.30074672,3894.8,3892.0,3.70829023]
[1760135753132,1.25307223,3894.7,3892.0,3.70829023]
[1760135753337,0.235,3897.1,3892.0,3.70829023]
[1760135753338,1.28682361,3894.5,3892.0,3.70829023]
[1760135753548,1.28123261,3894.3,3892.0,3.70829023]
[1760135753742,0.3242802,3894.4,3892.0,3.70829023]
[1760135753743,1.20411821,3894.1,3892.0,3.70829023]
[1760135753944,1.25575127,3893.9,3892.0,3.70829023]
[1760135754145,1.28073668,3893.7,3892.0,3.70829023]
[1760135754347,0.3242802,3893.6,3892.0,4.93829023]
[1760135754866,1.60557654,3894.2,3892.0,4.93829023]
[1760135755071,0.3242802,3895.1,3892.0,4.93829023]
[1760135755233,1.23651193,3895.0,3892.0,4.93829023]
[1760135755435,1.20844434,3894.8,3892.0,4.93829023]
[1760135755672,1.28545461,3894.6,3892.0,6.16829023]
[1760135755968,0.00386274,3895.3,3892.0,6.16829023]
[1760135756266,1.24867389,3896.2,3892.0,6.16829023]
[1760135756465,1.57295409,3896.2,3892.0,6.16829023]
[1760135756767,0.4305,3897.0,3892.0,6.16829023]
[1760135756768,1.23749733,3896.0,3892.0,6.16829023]
[1760135756968,1.27933999,3895.9,3892.0,7.39829023]
[1760135757339,1.25897772,3896.9,3892.0,7.39829023]
[1760135757539,0.235,3898.4,3892.0,7.39829023]
[1760135757540,1.25788762,3898.3,3892.0,7.39829023]
[1760135757870,1.25225646,3896.7,3892.0,7.39829023]
[1760135758172,1.21678967,3896.5,3892.0,7.39829023]
[1760135758333,0.30347187,3896.4,3892.0,8.62829023]
[1760135758538,1.25730802,3896.3,3892.0,8.62829023]
[1760135758738,1.24230026,3896.1,3892.0,8.62829023]
[1760135759035,1.27547725,3895.9,3892.0,8.62829023]
[1760135759240,0.28011704,3897.5,3892.0,8.62829023]
[1760135759571,1.20483898,3897.4,3892.0,8.62829023]
[1760135759764,1.29586762,3897.2,3892.0,9.85829023]
[1760135759973,1.25198018,3897.0,3892.0,9.85829023]
[1760135760389,1.25897772,3896.9,3892.0,9.85829023]
[1760135760597,1.24625778,3897.3,3892.0,9.85829023]
[1760135760752,1.24930386,3899.0,3892.0,9.85829023]
[1760135760952,1.24254869,3898.6,3892.0,11.08829023]
[1760135761277,1.29620327,3898.4,3892.0,11.08829023]
[1760135761454,0.001,3899.9,3892.0,11.08829023]
[1760135761455,1.21017425,3898.2,3892.0,11.08829023]
[1760135761660,1.20037519,3898.0,3892.0,11.08829023]
[1760135761866,1.24971778,3897.8,3892.0,11.08829023]
[1760135762070,0.27772204,3897.7,3892.0,11.08829023]
[1760135762255,1.27655162,3897.6,3892.0,11.08829023]
[1760135762460,1.20483898,3897.4,3892.0,12.31829023]
[1760135762787,1.29586762,3897.2,3892.0,12.31829023]
[1760135763076,1.25198018,3897.0,3892.0,12.32029023]
[1760135763252,1.27710378,3896.8,3892.0,12.32029023]
[1760135763447,1.25800426,3896.6,3892.0,12.32029023]
[1760135763658,1.29473717,3896.4,3892.0,12.32029023]
[1760135763857,0.001,3897.0,3892.0,12.32029023]
[1760135763858,1.24867389,3896.2,3892.0,13.55029023]
[1760135764178,1.23749733,3896.0,3892.0,13.55029023]
[1760135764378,1.28010928,3895.8,3892.0,13.55029023]
[1760135764681,1.21506832,3895.6,3892.0,13.55029023]
[1760135764978,1.22765308,3895.4,3892.0,9.18066474]
[1760135765187,1.26862936,3895.2,3892.0,10.41066474]
[1760135765480,1.23651193,3895.0,3892.0,8.71031569]
[1760135765681,1.20844434,3894.8,3892.0,6.64879999]
[1760135765881,1.28545461,3894.6,3892.0,6.64879999]
[1760135766049,0.68952804,3894.5,3892.0,6.64879999]
[1760135766255,0.4305,3894.4,3892.0,6.64879999]
[1760135766467,0.25902804,3894.3,3892.0,7.87879999]
[1760135766781,0.03568442,3894.2,3892.0,7.83217029]
[1760135766982,0.27683843,3894.1,3892.0,6.93929101]
[1760135767190,1.22734813,3894.0,3892.0,6.32257545]
[1760135767506,0.27311467,3893.9,3892.0,5.76520646]
[1760135767653,1.27914212,3893.8,3892.0,6.52329919]
[1760135767854,1.26888963,3893.6,3892.0,6.17620442]
[1760135768062,0.19049711,3893.5,3892.0,4.9751413]
[1760135768462,0.03568442,3893.4,3892.0,4.9751413]
[1760135768682,0.2387814,3893.3,3892.0,4.9751413]
[1760135768882,0.2070564,3894.4,3892.0,4.9751413]
[1760135769082,0.235,3896.1,3892.0,4.9751413]
[1760135769083,0.235,3896.1,3892.0,6.6758413]
[1760135769483,0.235,3896.1,3892.1,0.4707]
[1760135769759,1.25897772,3896.9,3892.1,0.4707]
[1760135769986,0.001,3897.0,3892.1,0.4707]
[1760135770491,0.001,3897.0,3892.1,1.7007]
[1760135770953,0.001,3897.0,3892.2,0.4707]
[1760135771598,0.03668442,3897.0,3892.2,0.4707]
[1760135771804,0.001,3897.0,3892.2,1.7007]
[1760135771968,0.001,3897.0,3892.3,0.4707]
[1760135773002,1.35797772,3896.9,3892.3,0.4707]
[1760135773303,0.099,3896.8,3892.3,1.7007]
[1760135773487,0.099,3896.8,3892.4,0.4707]
[1760135773488,1.25225646,3896.7,3892.4,0.4707]
[1760135773789,1.21678967,3896.5,3892.4,0.4707]
[1760135774086,1.25730802,3896.3,3892.4,0.4707]
[1760135774392,0.77331247,3896.6,3892.3,1.23]
[1760135774393,1.24230026,3896.1,3892.3,1.23]
[1760135774552,1.27547725,3895.9,3892.3,2.9307]
[1760135774756,1.21678967,3896.5,3892.4,0.4707]
[1760135774970,1.25730802,3896.3,3895.8,0.128]
[1760135775170,1.25730802,3896.3,3892.4,0.4707]
[1760135775171,1.25791837,3894.9,3892.4,0.4707]
[1760135775379,1.28010928,3895.8,3892.4,0.4707]
[1760135775709,1.21506832,3895.6,3892.4,0.4707]
[1760135775872,1.22765308,3895.4,3892.4,0.82380446]
[1760135776073,0.2681,3895.7,3892.4,0.74265504]
[1760135776295,0.36737718,3895.3,3892.4,0.74265504]
[1760135776601,0.63547718,3895.7,3892.4,0.74265504]
[1760135776808,0.36737718,3895.6,3892.4,0.74265504]
[1760135777002,1.5824455,3895.6,3892.4,0.74265504]
[1760135777204,1.22765308,3895.4,3892.4,1.97265504]
[1760135777403,1.26862936,3895.2,3892.4,1.97265504]
[1760135777703,1.23651193,3895.0,3892.4,1.97265504]
[1760135777910,1.20844434,3894.8,3892.4,1.60791676]
[1760135778094,1.21967165,3894.8,3892.4,0.46502613]
[1760135778272,1.2556431,3896.9,3892.4,0.46502613]
[1760135778474,1.27975138,3897.0,3892.5,0.4707]
[1760135778672,0.77331247,3894.7,3892.5,0.4707]
[1760135778895,0.001,3897.0,3892.5,0.4707]
[1760135779093,1.27975138,3897.0,3892.5,0.4707]
[1760135779298,1.27975138,3897.0,3892.4,1.69502613]
[1760135779299,1.24525894,3896.6,3892.4,1.69502613]
[1760135779480,1.23762496,3896.4,3892.4,1.69502613]
[1760135779680,0.77331247,3896.7,3892.5,0.4707]
[1760135779681,1.20891942,3896.2,3892.5,0.4707]
[1760135779897,1.27097149,3896.1,3892.5,0.4707]
[1760135780106,0.0027,3896.0,3892.5,0.4707]
[1760135780474,0.0027,3895.9,3892.5,0.4707]
[1760135780683,0.0027,3895.8,3892.5,0.4707]
[1760135780882,0.001,3894.7,3892.5,0.4707]
[1760135781286,0.001,3894.7,3892.6,0.4707]
[1760135781495,0.77333838,3894.6,3892.6,0.4707]
[1760135781695,0.77333838,3894.6,3892.5,1.23]
[1760135782105,0.0027,3894.5,3892.5,1.23]
[1760135782309,1.26258215,3894.5,3892.5,1.23]
[1760135782476,0.0027,3894.5,3892.5,1.23]
[1760135782679,1.25988215,3894.5,3892.5,2.46]
[1760135782983,1.23546815,3894.3,3892.5,2.10241577]
[1760135783177,0.33006409,3894.4,3892.5,2.10241577]
[1760135783178,1.23800315,3894.1,3892.5,2.10241577]
[1760135783381,1.26677727,3893.9,3892.5,1.7811082]
[1760135783613,1.22351847,3893.7,3892.5,1.46650685]
[1760135783778,1.22409473,3894.2,3892.5,1.46650685]
[1760135783978,1.23800315,3894.1,3892.5,2.69650685]
[1760135784212,1.27100639,3894.0,3892.5,2.69650685]
[1760135784510,1.25572365,3893.8,3892.5,2.59474117]
[1760135784810,1.24127328,3893.6,3892.5,1.78842931]
[1760135785110,1.24127328,3893.6,3892.5,1.46727725]
[1760135785304,0.77333838,3894.6,3893.5,0.128]
[1760135785500,0.77333838,3894.6,3892.5,2.69727725]
[1760135785720,0.001,3894.7,3893.6,0.4707]
[1760135785882,0.77288612,3896.4,3894.6,0.2291]
[1760135786082,0.77288612,3896.4,3894.7,0.4707]
[1760135786387,0.2387,3899.0,3894.7,0.4707]
[1760135786588,0.7726373,3897.6,3894.7,0.4707]
[1760135786789,0.7726373,3897.6,3894.7,1.7007]
[1760135787184,0.7726373,3897.6,3894.8,0.4707]
[1760135787381,0.80832172,3897.6,3894.8,0.41469646]
[1760135787720,0.001,3899.1,3894.8,0.41469646]
[1760135787919,0.77370397,3897.4,3894.8,0.41469646]
[1760135788105,0.77370397,3897.4,3894.8,1.64469646]
[1760135788427,0.001,3899.1,3894.8,1.23]
[1760135788727,0.7724145,3898.9,3894.8,1.23]
[1760135789013,1.24278902,3897.7,3894.8,1.23]
[1760135789380,1.24278902,3897.7,3894.8,2.46]
[1760135790813,0.33146461,3897.6,3894.8,3.69]
[1760135791119,1.28603382,3897.5,3894.8,3.69]
[1760135791426,1.64372492,3897.4,3894.8,3.69]
[1760135792034,1.64372492,3897.4,3892.5,2.69727725]
[1760135792035,1.29119784,3897.2,3892.5,0.15066855]
[1760135792329,1.25659234,3897.0,3892.5,0.15066855]
[1760135792491,1.29223935,3896.8,3892.5,0.15066855]
[1760135792691,1.24542092,3896.6,3892.5,0.15066855]
[1760135792918,1.27269527,3896.4,3892.5,0.15066855]
[1760135793127,1.28211266,3896.2,3892.4,2.32731199]
[1760135793327,1.20420827,3896.0,3892.4,1.65641487]
[1760135793621,1.23212055,3895.8,3892.5,1.23]
[1760135793847,1.4887294,3895.8,3892.5,1.23]
[1760135794005,1.29707498,3895.6,3892.5,1.23]
[1760135794199,0.77322277,3895.9,3892.5,1.23]
[1760135794200,1.26499815,3895.4,3892.5,1.23]
[1760135794404,1.23439647,3897.4,3892.5,1.23]
[1760135794600,0.77270895,3897.3,3892.5,1.23]
[1760135794835,0.77270895,3897.3,3892.5,2.46]
[1760135795432,1.23637424,3898.3,3892.5,2.46]
[1760135795608,1.24034189,3897.9,3892.5,2.46]
[1760135795814,1.23637424,3898.3,3892.5,2.46]
[1760135796133,0.77225742,3899.8,3892.5,2.46]
[1760135796134,0.4572,3898.2,3892.5,2.46]
[1760135796342,1.27758675,3897.6,3892.5,3.69]
[1760135796636,1.29681551,3897.7,3892.5,3.69]
[1760135797401,0.4572,3898.3,3892.5,3.69]
[1760135797402,1.29207929,3897.5,3892.5,3.69]
[1760135797642,1.22529765,3897.3,3892.5,3.69]
[1760135797804,1.26626994,3897.1,3892.5,4.92]
[1760135798006,1.22321851,3896.9,3892.5,4.92]
[1760135798610,1.29681551,3897.7,3892.5,4.92]
[1760135798805,1.26450807,3896.7,3892.5,4.92]
[1760135799000,1.29794572,3896.5,3892.5,4.92]
[1760135799201,1.22906801,3896.3,3892.5,6.15]
[1760135799501,1.29681551,3897.7,3892.5,6.15]
[1760135799834,0.001,3897.5,3892.5,6.15]
[1760135800046,1.23439647,3897.4,3892.5,6.15]
[1760135800738,1.29307929,3897.5,3892.5,7.38]
[1760135801038,0.001,3897.5,3892.5,7.38]
[1760135802020,0.001,3897.5,3892.5,8.61]
[1760135803561,0.001,3897.5,3892.5,9.84]
[1760135804361,1.23439647,3897.4,3892.5,9.84]
[1760135804858,1.23439647,3897.4,3892.5,11.07]
[1760135805227,1.27150415,3897.2,3892.5,11.07]
[1760135805546,0.001,3897.5,3892.5,11.07]
[1760135805547,1.23439647,3897.4,3892.5,11.07]
[1760135805753,1.27150415,3897.2,3897.1,0.128]
[1760135806057,0.35649597,3897.2,3892.5,11.07]
[1760135806357,1.26626994,3897.1,3892.5,12.3]
[1760135806523,1.22321851,3896.9,3892.5,12.3]
[1760135806729,0.23586406,3896.8,3892.6,0.279]
[1760135807058,1.25647474,3899.2,3892.6,0.1395]
[1760135807360,1.220232,3899.6,3892.6,0.1395]
[1760135807561,0.77244035,3898.9,3892.6,1.3695]
[1760135807723,1.4463742,3899.6,3892.6,1.3695]
[1760135807930,0.03568442,3900.0,3892.6,1.3695]
[1760135808262,0.25238386,3899.4,3892.6,1.3695]
[1760135808628,1.26247798,3899.3,3892.6,1.3695]
[1760135808866,1.27851873,3899.1,3892.6,2.5995]
[1760135809194,1.20061131,3898.9,3892.6,2.5995]
[1760135809374,1.25086283,3898.7,3892.6,2.5995]
[1760135809694,1.29734305,3898.5,3892.6,2.5995]
[1760135809863,1.23637424,3898.3,3892.6,1.62013518]
[1760135810074,1.29745959,3896.1,3892.1,1.20260282]
[1760135810265,1.24003341,3895.9,3892.6,0.58978748]
[1760135810580,1.29489145,3895.7,3892.6,0.58978748]
[1760135810981,1.293061,3895.5,3892.6,0.58978748]
[1760135811183,1.26499815,3895.4,3892.6,0.58978748]
[1760135811385,1.29489145,3895.7,3892.6,0.58978748]
[1760135811589,1.24635778,3895.3,3892.6,1.81978748]
[1760135812089,1.24635778,3895.3,3892.7,0.243]
[1760135812292,1.22351808,3896.4,3892.7,0.243]
[1760135812498,1.24407267,3896.6,3892.7,0.243]
[1760135812666,0.77293391,3896.3,3892.7,0.243]
[1760135812869,0.13431945,3896.3,3892.7,0.243]
[1760135813179,0.13431945,3896.3,3892.7,1.473]
[1760135813475,0.13431945,3896.3,3892.8,0.243]
[1760135814076,1.21741755,3898.0,3892.8,0.243]
[1760135814282,1.28791336,3897.8,3892.8,1.473]
[1760135814496,1.27758675,3897.6,3892.9,0.243]
[1760135814678,1.23439647,3897.4,3892.9,0.243]
[1760135814872,1.27150415,3897.2,3892.9,0.243]
[1760135815099,1.26841102,3897.0,3892.9,0.243]
[1760135815264,1.26338981,3896.8,3892.8,0.35776218]
[1760135815464,0.8737226,3896.9,3892.8,0.35776218]
[1760135815465,1.24407267,3896.6,3892.8,0.35776218]
[1760135815669,2.17166832,3896.5,3892.8,1.58776218]
[1760135815909,1.68731808,3896.4,3892.8,1.23]
[1760135816112,2.08739703,3896.3,3892.8,0.79064977]
[1760135816408,1.69020056,3896.2,3892.8,0.3958713]
[1760135816606,1.25008001,3896.0,3892.7,0.95240129]
[1760135816796,0.226,3892.8,3892.6,1.64374551]
[1760135817101,1.56641043,3892.7,3892.6,1.56499542]
[1760135817308,1.210679,3892.7,3892.6,1.56499542]
[1760135817602,2.25342396,3892.7,3892.6,0.62244143]
[1760135817816,1.98451408,3892.7,3892.6,0.41799644]
[1760135818016,1.98451408,3892.7,3892.6,0.02295344]
[1760135818316,1.20574299,3892.6,3892.2,0.002]
[1760135818612,1.23919568,3892.4,3892.0,4.46345454]
[1760135818813,1.26874646,3892.2,3892.0,3.91425074]
[1760135818998,0.77383508,3892.7,3892.0,1.19879608]
[1760135818999,1.45371893,3892.1,3892.0,1.19879608]
[1760135819175,1.45371893,3892.1,3892.0,0.70503442]
[1760135819376,1.45371893,3892.1,3891.6,0.002]
[1760135819377,1.22564036,3891.9,3890.6,0.75376336]
[1760135819581,1.24434354,3891.7,3890.6,0.06316772]
[1760135819780,1.2544562,3891.5,3890.3,0.51601944]
[1760135820001,1.22986936,3891.3,3890.6,0.5954917]
[1760135820200,1.49116059,3890.2,3887.5,0.4392]
[1760135820404,1.21851956,3891.1,3886.1,2.33509504]
[1760135820783,1.23232418,3890.9,3886.1,2.33509504]
[1760135821082,0.17854983,3892.0,3886.1,2.33509504]
[1760135821083,1.4630562,3891.5,3886.1,2.33509504]
[1760135821310,250.0,4524.0,3886.1,2.33509504]
[1760135821311,3.7957933,3889.9,3889.8,0.48967657]
[1760135821479,0.77383508,3892.7,3889.8,0.05962973]
[1760135821686,1.23322644,3891.2,3889.8,0.05962973]
[1760135822010,0.56721801,3893.6,3889.8,0.05962973]
[1760135822011,1.25701678,3893.5,3889.8,0.05962973]
[1760135822306,0.1345116,3893.6,3889.8,0.05962973]
[1760135822494,1.25701678,3893.5,3889.8,1.28962973]
[1760135823079,0.1345116,3893.6,3889.8,1.28962973]
[1760135823599,1.25701678,3893.5,3889.8,1.28962973]
[1760135824218,1.25701678,3893.5,3889.8,2.51962973]
[1760135824418,0.1345116,3893.6,3889.8,2.51962973]
[1760135824922,1.28707357,3893.4,3888.8,0.00517141]
[1760135825126,1.29206562,3890.2,3888.8,0.00517141]
[1760135825335,1.27738624,3889.4,3887.4,0.118]
[1760135825536,1.25057117,3890.4,3887.4,1.348]
[1760135825701,1.20435625,3889.7,3887.4,1.348]
[1760135826020,1.28762089,3889.6,3887.4,1.348]
[1760135826219,1.75030214,3889.5,3886.1,2.3140237]
[1760135826419,1.27738624,3889.4,3886.1,2.3140237]
[1760135826620,1.27402943,3888.3,3886.1,2.3140237]
[1760135826827,1.20688931,3888.1,3886.1,3.5440237]
[1760135827021,1.20811433,3887.9,3886.1,3.5440237]
[1760135827222,1.28746009,3887.7,3886.1,2.29282986]
[1760135827398,1.23630811,3887.1,3885.2,0.82535294]
[1760135827730,0.30124907,3887.6,3885.1,3.692]
[1760135827731,2.57387007,3885.2,3885.1,3.27386776]
[1760135827898,0.61980108,3885.2,3884.8,6.7448175]
[1760135828245,1.20407981,3885.9,3885.1,1.23]
[1760135828406,1.29262954,3885.3,3885.1,0.61373755]
[1760135828734,0.19517834,3885.2,3884.8,1.96561313]
[1760135828932,0.25338787,3886.6,3884.8,1.96561313]
[1760135829101,1.29151518,3886.5,3884.8,1.96561313]
[1760135829302,0.4638,3888.0,3884.8,1.96561313]
[1760135829535,0.4638,3888.0,3884.8,3.19561313]
[1760135829886,0.4638,3890.3,3884.8,3.19561313]
[1760135830100,0.22998604,3890.2,3884.8,3.19561313]
[1760135830322,0.22998604,3890.2,3884.9,0.02574068]
[1760135830519,0.00607289,3890.1,3884.8,3.19561313]
[1760135830818,0.00607289,3890.4,3884.9,0.00537252]
[1760135831018,0.00607289,3890.4,3884.9,0.01864259]
[1760135831221,0.00607289,3891.9,3884.9,0.01864259]
[1760135831633,1.28791336,3897.8,3884.9,0.01864259]
[1760135831634,0.00607289,3894.6,3884.9,1.93864259]
[1760135831833,0.00607289,3893.5,3884.9,1.93864259]
[1760135832012,0.00607289,3895.9,3884.9,1.93864259]
[1760135832216,0.00607289,3895.9,3885.0,0.27111088]
[1760135832408,0.13435507,3895.8,3887.2,58.6249]
[1760135832605,0.00607289,3895.7,3887.3,0.02572479]
[1760135833231,1.21977844,3895.6,3887.2,58.6249]
[1760135833433,1.26499815,3895.4,3886.5,58.5749]
[1760135833732,0.13435507,3895.8,3886.6,1.92]
[1760135833733,0.00607289,3895.3,3886.6,1.92]
[1760135833908,0.00607289,3895.6,3886.6,1.92]
[1760135834109,0.00607289,3895.6,3886.7,0.02572876]
[1760135834330,0.32498096,3895.5,3886.6,0.02572876]
[1760135834530,0.00607289,3895.4,3886.6,0.02572876]
[1760135834732,0.32498096,3895.3,3886.6,0.02572876]
[1760135835045,0.13431254,3895.7,3886.6,1.94572876]
[1760135835211,0.001,3891.9,3886.6,3.17572876]
[1760135835408,0.001,3891.9,3887.3,28.7329]
[1760135835739,0.001,3891.9,3887.4,0.02572346]
[1760135836142,0.001,3891.9,3887.3,28.7329]
[1760135836437,1.22664036,3891.9,3886.6,1.23]
[1760135836609,0.001,3891.9,3886.6,1.23]
[1760135836805,0.001,3891.9,3887.4,1.23]
[1760135837851,0.001,3891.9,3887.5,0.02227138]
[1760135838435,0.001,3891.9,3887.5,1.25296586]
[1760135839061,0.001,3891.9,3887.5,1.25284045]
[1760135839735,0.001,3891.9,3887.5,2.46]
[1760135840128,1.22664036,3891.9,3887.5,2.46]
[1760135840340,0.00607289,3891.8,3887.5,2.46]
[1760135840562,0.001,3891.9,3887.5,2.46]
[1760135840862,0.00607289,3891.8,3887.5,2.46]
[1760135841048,0.41842018,3891.8,3887.5,3.69]
[1760135841453,1.26809834,3891.6,3887.5,3.69]
[1760135841655,1.23120258,3891.4,3887.5,3.69]
[1760135841850,0.64691382,3891.3,3887.5,3.69]
[1760135842165,1.23322644,3891.2,3887.5,3.69]
[1760135842364,1.24668866,3891.0,3887.5,4.92]
[1760135842565,1.23884309,3890.8,3887.5,4.92]
[1760135842773,1.21393487,3890.6,3887.5,4.92]
[1760135842936,1.25057117,3890.4,3887.5,4.92]
[1760135843139,1.29206562,3890.2,3887.5,4.92]
[1760135843339,1.27595697,3890.0,3887.5,4.92]
[1760135843642,0.13540742,3891.9,3887.5,6.15]
[1760135843643,1.20759447,3889.8,3887.5,6.15]
[1760135843965,1.28762089,3889.6,3887.5,6.15]